[Event "*** SCC Grand Prix: Titled Tuesday Blitz"]
[Site "Chess.com"]
[Date "2020.10.06"]
[Round "4"]
[White "Tash_Boy"]
[Black "KarstenHansch"]
[Result "0-1"]
[WhiteElo "2659"]
[BlackElo "2491"]
[TimeControl "180+1"]
[EndTime "10:43:40 PDT"]
[Termination "KarstenHansch won by checkmate"]

1. e4 {[%clk 0:03:00.9]} 1... c6 {[%clk 0:03:00.2]} 2. d4 {[%clk 0:02:59.6]}
2... d5 {[%clk 0:03:01.1]} 3. exd5 {[%clk 0:02:58.6]} 3... cxd5 {[%clk
0:03:01.1]} 4. Nf3 {[%clk 0:02:59.5]} 4... Nc6 {[%clk 0:03:00.3]} 5. Bb5 {[%clk
0:02:57.8]} 5... Bg4 {[%clk 0:02:56.8]} 6. Qd3 {[%clk 0:02:57.2]} 6... Bxf3
{[%clk 0:02:52.1]} 7. Qxf3 {[%clk 0:02:56.6]} 7... e6 {[%clk 0:02:52.5]} 8. c3
{[%clk 0:02:56.1]} 8... Nf6 {[%clk 0:02:49.2]} 9. O-O {[%clk 0:02:54]} 9... Bd6
{[%clk 0:02:46.6]} 10. Re1 {[%clk 0:02:51.5]} 10... Qc7 {[%clk 0:02:45.4]} 11.
g3 {[%clk 0:02:49.7]} 11... O-O {[%clk 0:02:29.7]} 12. Nd2 {[%clk 0:02:46.3]}
12... e5 {[%clk 0:02:25.5]} 13. dxe5 {[%clk 0:02:43]} 13... Nxe5 {[%clk
0:02:25.4]} 14. Qg2 {[%clk 0:02:40.5]} 14... Qb6 {[%clk 0:02:19.8]} 15. Bf1
{[%clk 0:02:37.6]} 15... Rfe8 {[%clk 0:02:15.6]} 16. Nb3 {[%clk 0:02:35.9]}
16... Nc4 {[%clk 0:01:54.9]} 17. Bg5 {[%clk 0:02:29.3]} 17... Ne4 {[%clk
0:01:46.9]} 18. Bxc4 {[%clk 0:02:23.1]} 18... dxc4 {[%clk 0:01:43.9]} 19. Rxe4
{[%clk 0:02:22.9]} 19... cxb3 {[%clk 0:01:43.6]} 20. axb3 {[%clk 0:02:21.2]}
20... Qxb3 {[%clk 0:01:40.3]} 21. Rxa7 {[%clk 0:02:17.6]} 21... Qxb2 {[%clk
0:01:29.2]} 22. Rxe8+ {[%clk 0:02:08.3]} 22... Rxe8 {[%clk 0:01:29.4]} 23. Qxb7
{[%clk 0:02:08.8]} 23... Qxb7 {[%clk 0:01:11.4]} 24. Rxb7 {[%clk 0:02:09.7]}
24... h6 {[%clk 0:01:11.2]} 25. Be3 {[%clk 0:02:08.9]} 25... Rc8 {[%clk
0:01:09.9]} 26. Bd4 {[%clk 0:02:08.9]} 26... Bc5 {[%clk 0:01:09.6]} 27. Be5
{[%clk 0:01:46.2]} 27... f6 {[%clk 0:01:09]} 28. Bc7 {[%clk 0:01:33.8]} 28...
Kh7 {[%clk 0:01:01.6]} 29. Kg2 {[%clk 0:01:32.4]} 29... Kg6 {[%clk 0:00:56.7]}
30. Kf3 {[%clk 0:01:31.9]} 30... h5 {[%clk 0:00:52.9]} 31. Bf4 {[%clk
0:01:25.1]} 31... Rd8 {[%clk 0:00:48.1]} 32. Rc7 {[%clk 0:00:55.7]} 32... Rd3+
{[%clk 0:00:28.4]} 33. Ke2 {[%clk 0:00:54.8]} 33... Rxc3 {[%clk 0:00:24.6]} 34.
Kd2 {[%clk 0:00:53.8]} 34... Rc4 {[%clk 0:00:24.8]} 35. Kd3 {[%clk 0:00:52.7]}
35... Rd4+ {[%clk 0:00:24.7]} 36. Kc3 {[%clk 0:00:53.1]} 36... Bb6 {[%clk
0:00:24.3]} 37. Rb7 {[%clk 0:00:39.2]} 37... Rxf4 {[%clk 0:00:22.1]} 38. gxf4
{[%clk 0:00:36.9]} 38... Bxf2 {[%clk 0:00:23]} 39. Rb5 {[%clk 0:00:34.9]} 39...
Bg1 {[%clk 0:00:20.4]} 40. Kd3 {[%clk 0:00:25.2]} 40... Bxh2 {[%clk 0:00:19.8]}
41. Ke4 {[%clk 0:00:25.9]} 41... h4 {[%clk 0:00:18.6]} 42. Rb1 {[%clk
0:00:22.7]} 42... Bg3 {[%clk 0:00:18.5]} 43. Kf3 {[%clk 0:00:22.8]} 43... Kh5
{[%clk 0:00:17.8]} 44. Rb8 {[%clk 0:00:18.5]} 44... Kg6 {[%clk 0:00:15.9]} 45.
Kg4 {[%clk 0:00:17.8]} 45... f5+ {[%clk 0:00:15.8]} 46. Kf3 {[%clk 0:00:17.8]}
46... Kf6 {[%clk 0:00:16.1]} 47. Rb6+ {[%clk 0:00:17.6]} 47... Kf7 {[%clk
0:00:16.5]} 48. Rb5 {[%clk 0:00:18.1]} 48... g6 {[%clk 0:00:16.8]} 49. Ra5
{[%clk 0:00:18.4]} 49... Kf6 {[%clk 0:00:17.1]} 50. Ra7 {[%clk 0:00:18.2]} 50...
Ke6 {[%clk 0:00:16.8]} 51. Rh7 {[%clk 0:00:17.8]} 51... Kf6 {[%clk 0:00:17]} 52.
Rh8 {[%clk 0:00:17.8]} 52... Kg7 {[%clk 0:00:17]} 53. Re8 {[%clk 0:00:17.8]}
53... Kf7 {[%clk 0:00:17]} 54. Rc8 {[%clk 0:00:18.3]} 54... Kg7 {[%clk
0:00:17.3]} 55. Rc6 {[%clk 0:00:18]} 55... Kh6 {[%clk 0:00:17.4]} 56. Rc4 {[%clk
0:00:17.8]} 56... Kh5 {[%clk 0:00:17.4]} 57. Rc8 {[%clk 0:00:17.1]} 57... Kh6
{[%clk 0:00:17.8]} 58. Rc7 {[%clk 0:00:17.3]} 58... Be1 {[%clk 0:00:14.5]} 59.
Re7 {[%clk 0:00:16.9]} 59... Bg3 {[%clk 0:00:14.6]} 60. Rd7 {[%clk 0:00:14.3]}
60... g5 {[%clk 0:00:13.6]} 61. Rd6+ {[%clk 0:00:07.3]} 61... Kh5 {[%clk
0:00:13.6]} 62. Rd5 {[%clk 0:00:06.9]} 62... Bxf4 {[%clk 0:00:12.2]} 63. Rxf5
{[%clk 0:00:06.6]} 63... Bg3 {[%clk 0:00:12.2]} 64. Rb5 {[%clk 0:00:06.5]} 64...
Kg6 {[%clk 0:00:12.2]} 65. Kg4 {[%clk 0:00:07.4]} 65... Bf4 {[%clk 0:00:12.3]}
66. Rb6+ {[%clk 0:00:07.8]} 66... Kf7 {[%clk 0:00:12.4]} 67. Rb7+ {[%clk
0:00:07.8]} 67... Ke6 {[%clk 0:00:12.4]} 68. Rb5 {[%clk 0:00:08.7]} 68... Kd6
{[%clk 0:00:11.6]} 69. Ra5 {[%clk 0:00:09]} 69... Kc6 {[%clk 0:00:11.5]} 70. Rf5
{[%clk 0:00:09.3]} 70... Kd6 {[%clk 0:00:11.7]} 71. Rb5 {[%clk 0:00:09.3]} 71...
Kc6 {[%clk 0:00:12]} 72. Ra5 {[%clk 0:00:09.5]} 72... Kb6 {[%clk 0:00:12.4]} 73.
Rf5 {[%clk 0:00:09.5]} 73... Kc6 {[%clk 0:00:12.8]} 74. Kf3 {[%clk 0:00:09.8]}
74... Kd6 {[%clk 0:00:12.6]} 75. Kg4 {[%clk 0:00:10.2]} 75... Ke6 {[%clk
0:00:12.7]} 76. Rf8 {[%clk 0:00:10.4]} 76... Ke5 {[%clk 0:00:12.4]} 77. Re8+
{[%clk 0:00:10.8]} 77... Kd5 {[%clk 0:00:12.8]} 78. Re7 {[%clk 0:00:11.3]} 78...
Kd4 {[%clk 0:00:13.7]} 79. Re1 {[%clk 0:00:11.5]} 79... Kd3 {[%clk 0:00:14.6]}
80. Re7 {[%clk 0:00:10.6]} 80... Kd2 {[%clk 0:00:14.9]} 81. Kf3 {[%clk 0:00:11]}
81... h3 {[%clk 0:00:14.2]} 82. Rh7 {[%clk 0:00:10.7]} 82... h2 {[%clk
0:00:14.5]} 83. Kg2 {[%clk 0:00:11.2]} 83... Ke3 {[%clk 0:00:13.8]} 84. Re7+
{[%clk 0:00:11.6]} 84... Kd4 {[%clk 0:00:14.1]} 85. Re8 {[%clk 0:00:12]} 85...
Be5 {[%clk 0:00:13.1]} 86. Rg8 {[%clk 0:00:11.8]} 86... Bf4 {[%clk 0:00:12.5]}
87. Rf8 {[%clk 0:00:11.7]} 87... Ke4 {[%clk 0:00:12.5]} 88. Re8+ {[%clk
0:00:11.9]} 88... Kf5 {[%clk 0:00:12.7]} 89. Rg8 {[%clk 0:00:12.8]} 89... Kg4
{[%clk 0:00:13]} 90. Rf8 {[%clk 0:00:13.7]} 90... Be5 {[%clk 0:00:13.1]} 91. Re8
{[%clk 0:00:13.6]} 91... Kf5 {[%clk 0:00:12.4]} 92. Rg8 {[%clk 0:00:13.5]} 92...
g4 {[%clk 0:00:12.1]} 93. Rf8+ {[%clk 0:00:12.9]} 93... Ke4 {[%clk 0:00:12.3]}
94. Re8 {[%clk 0:00:11.7]} 94... g3 {[%clk 0:00:12.2]} 95. Rg8 {[%clk 0:00:12]}
95... Kf5 {[%clk 0:00:12.1]} 96. Re8 {[%clk 0:00:12.1]} 96... Ke4 {[%clk
0:00:12.3]} 97. Re7 {[%clk 0:00:12.2]} 97... Kd5 {[%clk 0:00:11.8]} 98. Rf7
{[%clk 0:00:12.4]} 98... Ke4 {[%clk 0:00:11.8]} 99. Rf3 {[%clk 0:00:12.7]} 99...
Bf4 {[%clk 0:00:11.7]} 100. Rb3 {[%clk 0:00:12.1]} 100... Be5 {[%clk 0:00:11.8]}
101. Rb4+ {[%clk 0:00:12.1]} 101... Kf5 {[%clk 0:00:11.8]} 102. Ra4 {[%clk
0:00:12.6]} 102... Kg5 {[%clk 0:00:11.7]} 103. Ra1 {[%clk 0:00:12.4]} 103... Bf4
{[%clk 0:00:11.9]} 104. Kf3 {[%clk 0:00:12]} 104... Bd6 {[%clk 0:00:11.8]} 105.
Ra5+ {[%clk 0:00:11.9]} 105... Kf6 {[%clk 0:00:10.5]} 106. Kg2 {[%clk
0:00:11.5]} 106... Be5 {[%clk 0:00:10.8]} 107. Ra4 {[%clk 0:00:10.6]} 107... Kf5
{[%clk 0:00:11]} 108. Rb4 {[%clk 0:00:10.8]} 108... Ke6 {[%clk 0:00:10.8]} 109.
Rb1 {[%clk 0:00:11.7]} 109... Kd5 {[%clk 0:00:11.1]} 110. Kf3 {[%clk 0:00:12.3]}
110... Bd6 {[%clk 0:00:10.8]} 111. Rd1+ {[%clk 0:00:12.6]} 111... Ke6 {[%clk
0:00:11.2]} 112. Re1+ {[%clk 0:00:12.8]} 112... Kf5 {[%clk 0:00:11.3]} 113. Rd1
{[%clk 0:00:13.4]} 113... Be5 {[%clk 0:00:11.6]} 114. Rf1 {[%clk 0:00:13.7]}
114... Ke6 {[%clk 0:00:11.5]} 115. Kg2 {[%clk 0:00:14.1]} 115... Kd5 {[%clk
0:00:11.5]} 116. Re1 {[%clk 0:00:14.6]} 116... Kd4 {[%clk 0:00:11.7]} 117. Rd1+
{[%clk 0:00:14.8]} 117... Ke4 {[%clk 0:00:12.1]} 118. Re1+ {[%clk 0:00:15.7]}
118... Kf5 {[%clk 0:00:12.5]} 119. Kf3 {[%clk 0:00:16.3]} 119... Bd6 {[%clk
0:00:12]} 120. Rb1 {[%clk 0:00:17.2]} 120... Be5 {[%clk 0:00:11.7]} 121. Rc1
{[%clk 0:00:17.4]} 121... Kg5 {[%clk 0:00:11.6]} 122. Re1 {[%clk 0:00:17.3]}
122... Bd6 {[%clk 0:00:10.8]} 123. Rd1 {[%clk 0:00:14.3]} 123... Bc7 {[%clk
0:00:10.5]} 124. Kg2 {[%clk 0:00:14]} 124... Kg4 {[%clk 0:00:09.3]} 125. Rd5
{[%clk 0:00:14.2]} 125... Bf4 {[%clk 0:00:09.2]} 126. Rc5 {[%clk 0:00:14.2]}
126... Be3 {[%clk 0:00:08.4]} 127. Rc6 {[%clk 0:00:14.6]} 127... Bf2 {[%clk
0:00:08.4]} 128. Rc4+ {[%clk 0:00:14.4]} 128... Kf5 {[%clk 0:00:08.6]} 129. Rb4
{[%clk 0:00:14.7]} 129... Ke5 {[%clk 0:00:08.3]} 130. Ra4 {[%clk 0:00:14.8]}
130... Kd5 {[%clk 0:00:08.7]} 131. Rg4 {[%clk 0:00:15.4]} 131... Ke5 {[%clk
0:00:09.2]} 132. Rh4 {[%clk 0:00:15.7]} 132... Kf5 {[%clk 0:00:09.5]} 133. Rh8
{[%clk 0:00:15.8]} 133... Kg5 {[%clk 0:00:09.7]} 134. Kf3 {[%clk 0:00:16.3]}
134... Kf5 {[%clk 0:00:09.6]} 135. Rf8+ {[%clk 0:00:16.4]} 135... Kg6 {[%clk
0:00:09.8]} 136. Rg8+ {[%clk 0:00:16.8]} 136... Kh7 {[%clk 0:00:09.9]} 137. Kg2
{[%clk 0:00:14.1]} 137... Kxg8 {[%clk 0:00:09.1]} 138. Kh1 {[%clk 0:00:13.8]}
138... Kf7 {[%clk 0:00:09]} 139. Kg2 {[%clk 0:00:14.3]} 139... Kf6 {[%clk
0:00:09.5]} 140. Kh1 {[%clk 0:00:14.8]} 140... Kf5 {[%clk 0:00:09.9]} 141. Kg2
{[%clk 0:00:15.4]} 141... Kf4 {[%clk 0:00:10.1]} 142. Kh1 {[%clk 0:00:15.7]}
142... Ba7 {[%clk 0:00:10]} 143. Kg2 {[%clk 0:00:16]} 143... Bb8 {[%clk
0:00:10.3]} 144. Kh1 {[%clk 0:00:16.2]} 144... Kg4 {[%clk 0:00:10]} 145. Kg2
{[%clk 0:00:16.4]} 145... Bc7 {[%clk 0:00:08.9]} 146. Kh1 {[%clk 0:00:17.2]}
146... Bd8 {[%clk 0:00:09.1]} 147. Kg2 {[%clk 0:00:17.5]} 147... h1=Q+ {[%clk
0:00:09.4]} 148. Kxh1 {[%clk 0:00:17.9]} 148... Kh3 {[%clk 0:00:09.5]} 149. Kg1
{[%clk 0:00:18]} 149... Bb6+ {[%clk 0:00:10.2]} 150. Kh1 {[%clk 0:00:18.3]}
150... g2# {[%clk 0:00:10.6]} 0-1

[Event "*** SCC Grand Prix: Titled Tuesday Blitz"]
[Site "Chess.com"]
[Date "2020.10.06"]
[Round "5"]
[White "ferch1ni"]
[Black "IsaacWiebe"]
[Result "1-0"]
[WhiteElo "2371"]
[BlackElo "2218"]
[TimeControl "180+1"]
[EndTime "10:52:03 PDT"]
[Termination "ferch1ni won by resignation"]

1. e4 {[%clk 0:02:27.8]} 1... e6 {[%clk 0:02:59.1]} 2. d4 {[%clk 0:02:25.3]}
2... d5 {[%clk 0:02:59.3]} 3. e5 {[%clk 0:02:24.5]} 3... c5 {[%clk 0:02:59.3]}
4. c3 {[%clk 0:02:25.1]} 4... Nc6 {[%clk 0:02:59.7]} 5. Nf3 {[%clk 0:02:23.1]}
5... Bd7 {[%clk 0:03:00.2]} 6. a3 {[%clk 0:02:15.3]} 6... f6 {[%clk 0:02:59.1]}
7. exf6 {[%clk 0:02:06.9]} 7... Nxf6 {[%clk 0:02:58.5]} 8. b4 {[%clk 0:02:06]}
8... cxd4 {[%clk 0:02:57.6]} 9. cxd4 {[%clk 0:02:06.9]} 9... Bd6 {[%clk
0:02:57.5]} 10. Bd3 {[%clk 0:02:00.2]} 10... e5 {[%clk 0:02:51.9]} 11. dxe5
{[%clk 0:01:59.3]} 11... Nxe5 {[%clk 0:02:52.2]} 12. Nxe5 {[%clk 0:01:59]} 12...
Bxe5 {[%clk 0:02:52.2]} 13. Ra2 {[%clk 0:01:59.7]} 13... O-O {[%clk 0:02:51]}
14. O-O {[%clk 0:01:50.6]} 14... Bg3 {[%clk 0:02:33.5]} 1-0

[Event "*** SCC Grand Prix: Titled Tuesday Blitz"]
[Site "Chess.com"]
[Date "2020.10.06"]
[Round "5"]
[White "underthebridge1999"]
[Black "Inga83"]
[Result "0-1"]
[WhiteElo "2250"]
[BlackElo "2411"]
[TimeControl "180+1"]
[EndTime "10:52:07 PDT"]
[Termination "Inga83 won by resignation"]

1. e4 {[%clk 0:02:58.6]} 1... c6 {[%clk 0:02:58.4]} 2. d4 {[%clk 0:02:55.5]}
2... d5 {[%clk 0:02:58.2]} 3. e5 {[%clk 0:02:55.5]} 3... Bf5 {[%clk 0:02:57.6]}
4. Be3 {[%clk 0:02:54.6]} 4... e6 {[%clk 0:02:57.2]} 5. Nd2 {[%clk 0:02:55.2]}
5... Qb6 {[%clk 0:02:54.3]} 6. Nb3 {[%clk 0:02:42.4]} 6... a5 {[%clk 0:02:53.9]}
7. a4 {[%clk 0:02:41.8]} 7... Na6 {[%clk 0:02:53.8]} 8. Nf3 {[%clk 0:02:40.6]}
8... Nb4 {[%clk 0:02:53.2]} 9. Rc1 {[%clk 0:02:37.6]} 9... h6 {[%clk 0:02:49.2]}
10. c3 {[%clk 0:02:35.7]} 10... Nd3+ {[%clk 0:02:47]} 11. Bxd3 {[%clk
0:02:34.5]} 11... Bxd3 {[%clk 0:02:46.3]} 12. Qxd3 {[%clk 0:02:25.5]} 12... Qxb3
{[%clk 0:02:43.2]} 13. Qc2 {[%clk 0:02:26.4]} 13... Qc4 {[%clk 0:02:41]} 14. Qb3
{[%clk 0:02:25.3]} 14... Qxb3 {[%clk 0:02:40.7]} 15. O-O {[%clk 0:02:21.5]}
15... Qxa4 {[%clk 0:02:39.8]} 16. Nd2 {[%clk 0:02:18.7]} 16... Qb5 {[%clk
0:02:37.6]} 17. c4 {[%clk 0:02:19.6]} 17... Qa6 {[%clk 0:02:34.5]} 18. cxd5
{[%clk 0:02:19.2]} 18... exd5 {[%clk 0:02:32.5]} 19. Ra1 {[%clk 0:02:18.6]}
19... Bb4 {[%clk 0:02:32.3]} 20. Nb3 {[%clk 0:02:18.6]} 20... Ne7 {[%clk
0:02:32.6]} 21. Nc5 {[%clk 0:02:18.1]} 21... Bxc5 {[%clk 0:02:32.6]} 22. dxc5
{[%clk 0:02:19]} 22... Qb5 {[%clk 0:02:32.8]} 23. b4 {[%clk 0:02:18.7]} 23... a4
{[%clk 0:02:29.4]} 0-1

[Event "*** SCC Grand Prix: Titled Tuesday Blitz"]
[Site "Chess.com"]
[Date "2020.10.06"]
[Round "5"]
[White "Sergienko_Sergey"]
[Black "MasterSonnevanck23"]
[Result "1-0"]
[WhiteElo "2362"]
[BlackElo "2351"]
[TimeControl "180+1"]
[EndTime "10:52:32 PDT"]
[Termination "Sergienko_Sergey won by resignation"]

1. e4 {[%clk 0:02:58.9]} 1... d6 {[%clk 0:02:59]} 2. d4 {[%clk 0:02:58]} 2...
Nf6 {[%clk 0:02:59.6]} 3. Nc3 {[%clk 0:02:57.8]} 3... g6 {[%clk 0:03:00.1]} 4.
f4 {[%clk 0:02:56.5]} 4... Bg7 {[%clk 0:03:00.3]} 5. Nf3 {[%clk 0:02:56.1]} 5...
O-O {[%clk 0:03:00.9]} 6. Bd3 {[%clk 0:02:55.2]} 6... Nc6 {[%clk 0:03:01.4]} 7.
e5 {[%clk 0:02:52.2]} 7... dxe5 {[%clk 0:03:01.4]} 8. dxe5 {[%clk 0:02:49.4]}
8... Nd5 {[%clk 0:03:00.9]} 9. Nxd5 {[%clk 0:02:46]} 9... Qxd5 {[%clk 0:03:00]}
10. Qe2 {[%clk 0:02:42.1]} 10... Bg4 {[%clk 0:02:59]} 11. Be4 {[%clk 0:02:27]}
11... Qa5+ {[%clk 0:02:54.2]} 12. Bd2 {[%clk 0:02:21.9]} 12... Qb6 {[%clk
0:02:53.7]} 13. Bc3 {[%clk 0:01:57.3]} 13... Rad8 {[%clk 0:02:50.6]} 14. h3
{[%clk 0:01:45.6]} 14... Bxf3 {[%clk 0:02:46.4]} 15. Qxf3 {[%clk 0:01:41.8]}
15... Nd4 {[%clk 0:02:38.9]} 16. Qf2 {[%clk 0:01:39.3]} 16... c5 {[%clk
0:02:38.4]} 17. O-O {[%clk 0:01:35.6]} 17... Ne2+ {[%clk 0:02:32.1]} 18. Qxe2
{[%clk 0:01:34.5]} 1-0

[Event "*** SCC Grand Prix: Titled Tuesday Blitz"]
[Site "Chess.com"]
[Date "2020.10.06"]
[Round "5"]
[White "FMKonstantin_Twitch"]
[Black "W_Amadeus"]
[Result "1/2-1/2"]
[WhiteElo "2561"]
[BlackElo "2718"]
[TimeControl "180+1"]
[EndTime "10:53:09 PDT"]
[Termination "Game drawn by repetition"]

1. e4 {[%clk 0:03:00.9]} 1... c6 {[%clk 0:02:56.6]} 2. Nf3 {[%clk 0:03:00.2]}
2... d5 {[%clk 0:02:57]} 3. Nc3 {[%clk 0:03:00.3]} 3... dxe4 {[%clk 0:02:47.2]}
4. Nxe4 {[%clk 0:02:58.8]} 4... Nf6 {[%clk 0:02:47.8]} 5. Qe2 {[%clk 0:02:57.1]}
5... Nxe4 {[%clk 0:02:47.6]} 6. Qxe4 {[%clk 0:02:58]} 6... Qa5 {[%clk 0:02:38]}
7. Bc4 {[%clk 0:02:51.4]} 7... Bf5 {[%clk 0:02:20.2]} 8. Qf4 {[%clk 0:02:50.2]}
8... e6 {[%clk 0:02:18.6]} 9. c3 {[%clk 0:02:42.2]} 9... Nd7 {[%clk 0:02:12.7]}
10. O-O {[%clk 0:02:36.3]} 10... Be7 {[%clk 0:02:10.5]} 11. d4 {[%clk
0:02:32.6]} 11... O-O {[%clk 0:02:06.9]} 12. Qg3 {[%clk 0:02:28.5]} 12... Nf6
{[%clk 0:01:52.4]} 13. Ne5 {[%clk 0:02:15.7]} 13... Qd8 {[%clk 0:01:47.7]} 14.
Bh6 {[%clk 0:02:01.3]} 14... Nh5 {[%clk 0:01:37.4]} 15. Qf3 {[%clk 0:01:59]}
15... Nf6 {[%clk 0:01:36.3]} 16. Qg3 {[%clk 0:01:55.7]} 16... Nh5 {[%clk
0:01:33.7]} 17. Qf3 {[%clk 0:01:52.7]} 17... Nf6 {[%clk 0:01:34]} 18. Qg3 {[%clk
0:01:52.8]} 1/2-1/2

[Event "*** SCC Grand Prix: Titled Tuesday Blitz"]
[Site "Chess.com"]
[Date "2020.10.06"]
[Round "5"]
[White "nelsoncopa"]
[Black "andrzej"]
[Result "0-1"]
[WhiteElo "1665"]
[BlackElo "2316"]
[TimeControl "180+1"]
[EndTime "10:53:16 PDT"]
[Termination "andrzej won by resignation"]

1. d4 {[%clk 0:02:47.8]} 1... Nf6 {[%clk 0:03:00]} 2. c4 {[%clk 0:02:47.7]} 2...
g6 {[%clk 0:03:00.5]} 3. Nc3 {[%clk 0:02:47.8]} 3... Bg7 {[%clk 0:03:01]} 4. Nf3
{[%clk 0:02:48.1]} 4... O-O {[%clk 0:02:59.8]} 5. e3 {[%clk 0:02:48.6]} 5... c5
{[%clk 0:02:56.8]} 6. d5 {[%clk 0:02:45.8]} 6... e6 {[%clk 0:02:56.9]} 7. dxe6
{[%clk 0:02:44.5]} 7... fxe6 {[%clk 0:02:51.1]} 8. Be2 {[%clk 0:02:43.6]} 8...
Nc6 {[%clk 0:02:50.9]} 9. a3 {[%clk 0:02:43]} 9... d5 {[%clk 0:02:48.2]} 10.
cxd5 {[%clk 0:02:41.5]} 10... exd5 {[%clk 0:02:48]} 11. O-O {[%clk 0:02:41.5]}
11... Kh8 {[%clk 0:02:42.9]} 12. Bd2 {[%clk 0:02:41.5]} 12... d4 {[%clk
0:02:39.9]} 13. exd4 {[%clk 0:02:37]} 13... cxd4 {[%clk 0:02:39.9]} 14. Nb5
{[%clk 0:02:21.5]} 14... d3 {[%clk 0:02:39.7]} 15. Bxd3 {[%clk 0:02:14.7]} 15...
Qxd3 {[%clk 0:02:38.5]} 16. Nc7 {[%clk 0:02:15]} 16... Rb8 {[%clk 0:02:33.9]}
17. Bc3 {[%clk 0:02:14.3]} 17... Qd8 {[%clk 0:02:21.9]} 18. Nb5 {[%clk
0:02:12.5]} 18... Bg4 {[%clk 0:02:17.3]} 19. Qc2 {[%clk 0:02:07.3]} 19... Bxf3
{[%clk 0:02:16.1]} 20. gxf3 {[%clk 0:02:08.2]} 20... Qd5 {[%clk 0:02:12.9]} 21.
Nc7 {[%clk 0:02:01.2]} 21... Qxf3 {[%clk 0:02:04.6]} 22. Ne6 {[%clk 0:02:01.1]}
22... Rfe8 {[%clk 0:01:52.1]} 23. Nxg7 {[%clk 0:02:00]} 23... Re4 {[%clk
0:01:45.6]} 0-1

[Event "*** SCC Grand Prix: Titled Tuesday Blitz"]
[Site "Chess.com"]
[Date "2020.10.06"]
[Round "5"]
[White "Forantes"]
[Black "Gusarov91"]
[Result "0-1"]
[WhiteElo "2423"]
[BlackElo "2586"]
[TimeControl "180+1"]
[EndTime "10:53:22 PDT"]
[Termination "Gusarov91 won by resignation"]

1. Nf3 {[%clk 0:03:00.9]} 1... d5 {[%clk 0:02:59.7]} 2. g3 {[%clk 0:03:00.7]}
2... c6 {[%clk 0:03:00.1]} 3. Bg2 {[%clk 0:03:01.2]} 3... Nf6 {[%clk 0:03:00.8]}
4. O-O {[%clk 0:03:01.8]} 4... Bg4 {[%clk 0:03:01.5]} 5. d4 {[%clk 0:03:01.7]}
5... Nbd7 {[%clk 0:03:01.3]} 6. c4 {[%clk 0:03:02.3]} 6... e6 {[%clk 0:03:01.2]}
7. Qb3 {[%clk 0:03:02]} 7... Qb6 {[%clk 0:03:00.8]} 8. c5 {[%clk 0:03:00.8]}
8... Qxb3 {[%clk 0:03:00.7]} 9. axb3 {[%clk 0:03:01.7]} 9... Bxf3 {[%clk
0:03:01.1]} 10. Bxf3 {[%clk 0:03:01.5]} 10... a6 {[%clk 0:03:01.7]} 11. Nc3
{[%clk 0:03:01.3]} 11... e5 {[%clk 0:03:01.9]} 12. e3 {[%clk 0:02:57.2]} 12...
Be7 {[%clk 0:03:01.6]} 13. b4 {[%clk 0:02:56.3]} 13... O-O {[%clk 0:03:01]} 14.
Bd2 {[%clk 0:02:56.3]} 14... Rac8 {[%clk 0:02:57.9]} 15. Rfe1 {[%clk 0:02:37.5]}
15... Rfe8 {[%clk 0:02:56.4]} 16. Bg2 {[%clk 0:02:37.4]} 16... Bd8 {[%clk
0:02:51.9]} 17. Rad1 {[%clk 0:02:36.7]} 17... Bc7 {[%clk 0:02:51.8]} 18. Bc1
{[%clk 0:02:35.7]} 18... h5 {[%clk 0:02:50.9]} 19. Bh3 {[%clk 0:02:26.1]} 19...
Rcd8 {[%clk 0:02:50.1]} 20. b3 {[%clk 0:02:21.1]} 20... Nf8 {[%clk 0:02:43.5]}
21. Ne2 {[%clk 0:02:12.7]} 21... Ne6 {[%clk 0:02:42.2]} 22. Bb2 {[%clk
0:02:09.1]} 22... e4 {[%clk 0:02:36.4]} 23. Bxe6 {[%clk 0:02:03.6]} 23... fxe6
{[%clk 0:02:36]} 24. Nf4 {[%clk 0:01:58.8]} 24... g5 {[%clk 0:02:35]} 25. Ng2
{[%clk 0:01:55.9]} 25... Kg7 {[%clk 0:02:31.2]} 26. Rf1 {[%clk 0:01:53.5]} 26...
h4 {[%clk 0:02:26]} 27. Rfe1 {[%clk 0:01:28.7]} 27... h3 {[%clk 0:02:25.4]} 0-1

[Event "*** SCC Grand Prix: Titled Tuesday Blitz"]
[Site "Chess.com"]
[Date "2020.10.06"]
[Round "5"]
[White "Evachess2006"]
[Black "VladimirBugayev"]
[Result "0-1"]
[WhiteElo "1628"]
[BlackElo "2307"]
[TimeControl "180+1"]
[EndTime "10:53:27 PDT"]
[Termination "VladimirBugayev won on time"]

1. e4 {[%clk 0:02:59.6]} 1... c6 {[%clk 0:02:59.7]} 2. d4 {[%clk 0:02:56.5]}
2... d5 {[%clk 0:03:00]} 3. exd5 {[%clk 0:02:56.8]} 3... cxd5 {[%clk 0:03:00.9]}
4. Bd3 {[%clk 0:02:56.4]} 4... Nc6 {[%clk 0:03:00.8]} 5. c3 {[%clk 0:02:55.5]}
5... Nf6 {[%clk 0:03:01]} 6. Bf4 {[%clk 0:02:55.4]} 6... Bg4 {[%clk 0:02:57.7]}
7. Nf3 {[%clk 0:02:47.7]} 7... e6 {[%clk 0:02:56.1]} 8. Nbd2 {[%clk 0:02:42.6]}
8... Bd6 {[%clk 0:02:55.3]} 9. Bg3 {[%clk 0:02:28]} 9... O-O {[%clk 0:02:51.6]}
10. O-O {[%clk 0:01:56.8]} 10... Rc8 {[%clk 0:02:50.5]} 0-1

[Event "*** SCC Grand Prix: Titled Tuesday Blitz"]
[Site "Chess.com"]
[Date "2020.10.06"]
[Round "5"]
[White "gagtemp"]
[Black "AndreyNeves"]
[Result "0-1"]
[WhiteElo "1950"]
[BlackElo "2220"]
[TimeControl "180+1"]
[EndTime "10:53:42 PDT"]
[Termination "AndreyNeves won by resignation"]

1. e4 {[%clk 0:03:00.9]} 1... e5 {[%clk 0:02:58.7]} 2. Nf3 {[%clk 0:03:00.8]}
2... Nc6 {[%clk 0:02:58.6]} 3. Bc4 {[%clk 0:03:00.5]} 3... Nf6 {[%clk
0:02:57.6]} 4. d3 {[%clk 0:02:59.9]} 4... Bc5 {[%clk 0:02:56.3]} 5. O-O {[%clk
0:02:59.6]} 5... d6 {[%clk 0:02:56.1]} 6. a4 {[%clk 0:02:59.5]} 6... a6 {[%clk
0:02:54]} 7. Re1 {[%clk 0:02:58.7]} 7... h6 {[%clk 0:02:52.3]} 8. c3 {[%clk
0:02:58.3]} 8... Ba7 {[%clk 0:02:50.4]} 9. Nbd2 {[%clk 0:02:54.9]} 9... g5
{[%clk 0:02:42.2]} 10. Nf1 {[%clk 0:02:52.2]} 10... Be6 {[%clk 0:02:31.9]} 11.
Ne3 {[%clk 0:02:29.5]} 11... Qd7 {[%clk 0:02:29.7]} 12. Nd5 {[%clk 0:02:25.5]}
12... Bxd5 {[%clk 0:02:28.5]} 13. Bxd5 {[%clk 0:02:20.1]} 13... Nxd5 {[%clk
0:02:26.8]} 14. exd5 {[%clk 0:02:21]} 14... Ne7 {[%clk 0:02:26.4]} 15. c4 {[%clk
0:02:21.1]} 15... O-O {[%clk 0:02:21.4]} 16. d4 {[%clk 0:02:03.9]} 16... f6
{[%clk 0:02:17.8]} 17. dxe5 {[%clk 0:02:01.6]} 17... fxe5 {[%clk 0:02:16.4]} 18.
Qd3 {[%clk 0:01:48.5]} 18... Qf5 {[%clk 0:02:12.9]} 19. Qxf5 {[%clk 0:01:43.6]}
19... Rxf5 {[%clk 0:02:12.7]} 20. b3 {[%clk 0:01:38.5]} 20... Raf8 {[%clk
0:02:10.2]} 21. Ra2 {[%clk 0:01:37.8]} 21... g4 {[%clk 0:02:05.3]} 22. Nh4
{[%clk 0:01:30.8]} 22... Rxf2 {[%clk 0:02:04.3]} 23. Rxf2 {[%clk 0:01:14.2]}
23... Bxf2+ {[%clk 0:02:03]} 0-1